Workbook

Sheet Matkaloki
B1: MATKALOKI
C11: KORVATTAVAT | E11: KORVAUS
C12: KILOMETRIT | E12: YHTEENSÄ
C17: 2012-05-01 | E17: 2012-05-10
C19: JAKSO | E19: JAKSO
C20: ALOITUS | E20: LOPETUS
C26: 54 | E26: 9,800
C28: KORVAUS | E28: EDELLINEN POLTTOAINE-
C29: SENTTIÄ/KM | E29: LUKEMA

Sheet Lokitiedot
B1: MATKALOKI
B5: PÄIVÄMÄÄRÄ | C5: TOIMINTA | D5: MATKAM. 1 | E5: SIJAINTI | F5: MATKAM. 2 | G5: KOHDE | H5: KORVAUS | I5: LITRAA | J5: KULUT | K5: KILOMETRIT | L5: MPG | M5: SENTTIÄ/KM | N5: HUOMAUTUKSIA
B6: 2012-05-01 | C6: Matka | D6: 10,123 | E6: Chevron - Main St | F6: 10,130 | I6: 15.56 | J6: 64.11 € | K6: =miles -> 7 | L6: =IF(OR(LEN(data[[#This Row],[MATKAM. 2]]),data[[#This Row],[MATKAM. 1]]=""),"",IFERROR(data[[#This Row],[KILOMETRIT]]/data[[#This Row],[LITRAA]],"")) ->  | M6: =IF(data[[#This Row],[MPG]]="","",100*data[[#This Row],[KULUT]]/data[[#This Row],[KILOMETRIT]]) -> 
B7: 2012-05-01 | C7: Matka | D7: 10,130 | E7: Toimisto | F7: 10,200 | G7: Cherry Street | H7: Kyllä | K7: =miles -> 70 | L7: =IF(OR(LEN(data[[#This Row],[MATKAM. 2]]),data[[#This Row],[MATKAM. 1]]=""),"",IFERROR(data[[#This Row],[KILOMETRIT]]/data[[#This Row],[LITRAA]],"")) ->  | M7: =IF(data[[#This Row],[MPG]]="","",100*data[[#This Row],[KULUT]]/data[[#This Row],[KILOMETRIT]]) -> 
B8: 2012-05-01 | C8: Matka | D8: 10,200 | E8: Smithfields | F8: 10,285 | G8: Toimisto | H8: Kyllä | K8: =miles -> 85 | L8: =IF(OR(LEN(data[[#This Row],[MATKAM. 2]]),data[[#This Row],[MATKAM. 1]]=""),"",IFERROR(data[[#This Row],[KILOMETRIT]]/data[[#This Row],[LITRAA]],"")) ->  | M8: =IF(data[[#This Row],[MPG]]="","",100*data[[#This Row],[KULUT]]/data[[#This Row],[KILOMETRIT]]) -> 
B9: 2012-05-02 | C9: Matka | D9: 10,285 | E9: Toimisto | F9: 10,450 | G9: Colo Vineyard | H9: Kyllä | K9: =miles -> 165 | L9: =IF(OR(LEN(data[[#This Row],[MATKAM. 2]]),data[[#This Row],[MATKAM. 1]]=""),"",IFERROR(data[[#This Row],[KILOMETRIT]]/data[[#This Row],[LITRAA]],"")) ->  | M9: =IF(data[[#This Row],[MPG]]="","",100*data[[#This Row],[KULUT]]/data[[#This Row],[KILOMETRIT]]) -> 
B10: 2012-05-02 | C10: Polttoaine | D10: 10,450 | E10: Shell | I10: 11.20 | J10: 55.42 € | K10: =miles -> 650 | L10: =IF(OR(LEN(data[[#This Row],[MATKAM. 2]]),data[[#This Row],[MATKAM. 1]]=""),"",IFERROR(data[[#This Row],[KILOMETRIT]]/data[[#This Row],[LITRAA]],"")) -> 58.0 | M10: =IF(data[[#This Row],[MPG]]="","",100*data[[#This Row],[KULUT]]/data[[#This Row],[KILOMETRIT]]) -> 8.5
B11: 2012-05-02 | C11: Matka | D11: 10,500 | E11: Colo Vineyard | F11: 10,518 | G11: Toimisto | H11: Kyllä | K11: =miles -> 18 | L11: =IF(OR(LEN(data[[#This Row],[MATKAM. 2]]),data[[#This Row],[MATKAM. 1]]=""),"",IFERROR(data[[#This Row],[KILOMETRIT]]/data[[#This Row],[LITRAA]],"")) ->  | M11: =IF(data[[#This Row],[MPG]]="","",100*data[[#This Row],[KULUT]]/data[[#This Row],[KILOMETRIT]]) -> 
B12: 2012-05-03 | C12: Matka | D12: 10,518 | E12: Toimisto | F12: 10,745 | G12: Toimisto | H12: Kyllä | K12: =miles -> 227 | L12: =IF(OR(LEN(data[[#This Row],[MATKAM. 2]]),data[[#This Row],[MATKAM. 1]]=""),"",IFERROR(data[[#This Row],[KILOMETRIT]]/data[[#This Row],[LITRAA]],"")) ->  | M12: =IF(data[[#This Row],[MPG]]="","",100*data[[#This Row],[KULUT]]/data[[#This Row],[KILOMETRIT]]) -> 
B13: 2012-05-04 | C13: Polttoaine | D13: 10,745 | E13: Chevron - Main St | I13: 16.60 | J13: 69.24 € | K13: =miles -> 295 | L13: =IF(OR(LEN(data[[#This Row],[MATKAM. 2]]),data[[#This Row],[MATKAM. 1]]=""),"",IFERROR(data[[#This Row],[KILOMETRIT]]/data[[#This Row],[LITRAA]],"")) -> 17.8 | M13: =IF(data[[#This Row],[MPG]]="","",100*data[[#This Row],[KULUT]]/data[[#This Row],[KILOMETRIT]]) -> 23.5
B14: 2012-05-04 | C14: Matka | D14: 10,745 | E14: Toimisto | F14: 10,800 | G14: Porterville | H14: Kyllä | K14: =miles -> 55 | L14: =IF(OR(LEN(data[[#This Row],[MATKAM. 2]]),data[[#This Row],[MATKAM. 1]]=""),"",IFERROR(data[[#This Row],[KILOMETRIT]]/data[[#This Row],[LITRAA]],"")) ->  | M14: =IF(data[[#This Row],[MPG]]="","",100*data[[#This Row],[KULUT]]/data[[#This Row],[KILOMETRIT]]) -> 
B15: 2012-05-04 | C15: Matka | D15: 10,800 | E15: Porterville | F15: 10,875 | G15: Toimisto | H15: Kyllä | K15: =miles -> 75 | L15: =IF(OR(LEN(data[[#This Row],[MATKAM. 2]]),data[[#This Row],[MATKAM. 1]]=""),"",IFERROR(data[[#This Row],[KILOMETRIT]]/data[[#This Row],[LITRAA]],"")) ->  | M15: =IF(data[[#This Row],[MPG]]="","",100*data[[#This Row],[KULUT]]/data[[#This Row],[KILOMETRIT]]) -> 
B16: 2012-05-07 | C16: Matka | D16: 10,875 | E16: Toimisto | F16: 10,921 | G16: Cherry Street | H16: Kyllä | K16: =miles -> 46 | L16: =IF(OR(LEN(data[[#This Row],[MATKAM. 2]]),data[[#This Row],[MATKAM. 1]]=""),"",IFERROR(data[[#This Row],[KILOMETRIT]]/data[[#This Row],[LITRAA]],"")) ->  | M16: =IF(data[[#This Row],[MPG]]="","",100*data[[#This Row],[KULUT]]/data[[#This Row],[KILOMETRIT]]) -> 
B17: 2012-05-07 | C17: Matka | D17: 10,921 | E17: Smithfields | F17: 10,969 | G17: Toimisto | H17: Kyllä | K17: =miles -> 48 | L17: =IF(OR(LEN(data[[#This Row],[MATKAM. 2]]),data[[#This Row],[MATKAM. 1]]=""),"",IFERROR(data[[#This Row],[KILOMETRIT]]/data[[#This Row],[LITRAA]],"")) ->  | M17: =IF(data[[#This Row],[MPG]]="","",100*data[[#This Row],[KULUT]]/data[[#This Row],[KILOMETRIT]]) -> 
B18: 2012-05-09 | C18: Matka | D18: 10,969 | E18: Toimisto | F18: 11,000 | G18: Riverside | H18: Kyllä | K18: =miles -> 31 | L18: =IF(OR(LEN(data[[#This Row],[MATKAM. 2]]),data[[#This Row],[MATKAM. 1]]=""),"",IFERROR(data[[#This Row],[KILOMETRIT]]/data[[#This Row],[LITRAA]],"")) ->  | M18: =IF(data[[#This Row],[MPG]]="","",100*data[[#This Row],[KULUT]]/data[[#This Row],[KILOMETRIT]]) -> 
B19: 2012-05-09 | C19: Matka | D19: 11,000 | E19: Riverside | F19: 11,100 | G19: Koti | H19: Ei | K19: =miles -> 100 | L19: =IF(OR(LEN(data[[#This Row],[MATKAM. 2]]),data[[#This Row],[MATKAM. 1]]=""),"",IFERROR(data[[#This Row],[KILOMETRIT]]/data[[#This Row],[LITRAA]],"")) ->  | M19: =IF(data[[#This Row],[MPG]]="","",100*data[[#This Row],[KULUT]]/data[[#This Row],[KILOMETRIT]]) -> 

Sheet laskelmat
A1: *** Tämä taulukko pysyy piilotettuna ***
I6: =OFFSET(I9,,secondAxis="Polttoainekustannukset") -> SENTTIÄ/MAILI
M7: 2
H8: Matka | I8: Polttoaine | J8: Polttoaine | L8: Second Axis: | M8: =REPT("MPG",M7=1)&REPT("Polttoainekustannukset",M7=2) -> Polttoainekustannukset
H9: Ajetut mailit | I9: MPG | J9: SENTTIÄ/MAILI
C10: Korvattavat mailit: | D10: =SUMIFS(data[KILOMETRIT],data[KORVAUS],"Kyllä",data[PÄIVÄMÄÄRÄ],">="&periodStart,data[PÄIVÄMÄÄRÄ],"<="&periodEnd) -> 820 | F10: 1 | G10: =periodStart -> 2012-05-01 | H10: =SUMIFS(data[KILOMETRIT],data[PÄIVÄMÄÄRÄ],G10,data[TOIMINTA],$H$8) -> 162 | I10: =IFERROR(AVERAGEIFS(data[MPG],data[PÄIVÄMÄÄRÄ],G10,data[TOIMINTA],$I$8),NA()) ->  | J10: =IFERROR(AVERAGEIFS(data[SENTTIÄ/KM],data[PÄIVÄMÄÄRÄ],G10,data[TOIMINTA],$J$8),NA()) -> 
C11: Korvaus yhteensä: | D11: =D10*ReimbursementPerMile/100 -> 442.80 € | F11: 2 | G11: =G10+1 -> 2012-05-02 | H11: =SUMIFS(data[KILOMETRIT],data[PÄIVÄMÄÄRÄ],G11,data[TOIMINTA],$H$8) -> 183 | I11: =IFERROR(AVERAGEIFS(data[MPG],data[PÄIVÄMÄÄRÄ],G11,data[TOIMINTA],$I$8),NA()) -> 58.0 | J11: =IFERROR(AVERAGEIFS(data[SENTTIÄ/KM],data[PÄIVÄMÄÄRÄ],G11,data[TOIMINTA],$J$8),NA()) -> 8.5
F12: 3 | G12: 2012-05-03 | H12: =SUMIFS(data[KILOMETRIT],data[PÄIVÄMÄÄRÄ],G12,data[TOIMINTA],$H$8) -> 227 | I12: =IFERROR(AVERAGEIFS(data[MPG],data[PÄIVÄMÄÄRÄ],G12,data[TOIMINTA],$I$8),NA()) ->  | J12: =IFERROR(AVERAGEIFS(data[SENTTIÄ/KM],data[PÄIVÄMÄÄRÄ],G12,data[TOIMINTA],$J$8),NA()) -> 
F13: 4 | G13: 2012-05-04 | H13: =SUMIFS(data[KILOMETRIT],data[PÄIVÄMÄÄRÄ],G13,data[TOIMINTA],$H$8) -> 130 | I13: =IFERROR(AVERAGEIFS(data[MPG],data[PÄIVÄMÄÄRÄ],G13,data[TOIMINTA],$I$8),NA()) -> 17.8 | J13: =IFERROR(AVERAGEIFS(data[SENTTIÄ/KM],data[PÄIVÄMÄÄRÄ],G13,data[TOIMINTA],$J$8),NA()) -> 23.5
F14: 5 | G14: 2012-05-05 | H14: =SUMIFS(data[KILOMETRIT],data[PÄIVÄMÄÄRÄ],G14,data[TOIMINTA],$H$8) -> 0 | I14: =IFERROR(AVERAGEIFS(data[MPG],data[PÄIVÄMÄÄRÄ],G14,data[TOIMINTA],$I$8),NA()) ->  | J14: =IFERROR(AVERAGEIFS(data[SENTTIÄ/KM],data[PÄIVÄMÄÄRÄ],G14,data[TOIMINTA],$J$8),NA()) -> 
F15: 6 | G15: 2012-05-06 | H15: =SUMIFS(data[KILOMETRIT],data[PÄIVÄMÄÄRÄ],G15,data[TOIMINTA],$H$8) -> 0 | I15: =IFERROR(AVERAGEIFS(data[MPG],data[PÄIVÄMÄÄRÄ],G15,data[TOIMINTA],$I$8),NA()) ->  | J15: =IFERROR(AVERAGEIFS(data[SENTTIÄ/KM],data[PÄIVÄMÄÄRÄ],G15,data[TOIMINTA],$J$8),NA()) -> 
F16: 7 | G16: 2012-05-07 | H16: =SUMIFS(data[KILOMETRIT],data[PÄIVÄMÄÄRÄ],G16,data[TOIMINTA],$H$8) -> 94 | I16: =IFERROR(AVERAGEIFS(data[MPG],data[PÄIVÄMÄÄRÄ],G16,data[TOIMINTA],$I$8),NA()) ->  | J16: =IFERROR(AVERAGEIFS(data[SENTTIÄ/KM],data[PÄIVÄMÄÄRÄ],G16,data[TOIMINTA],$J$8),NA()) -> 
F17: 8 | G17: 2012-05-08 | H17: =SUMIFS(data[KILOMETRIT],data[PÄIVÄMÄÄRÄ],G17,data[TOIMINTA],$H$8) -> 0 | I17: =IFERROR(AVERAGEIFS(data[MPG],data[PÄIVÄMÄÄRÄ],G17,data[TOIMINTA],$I$8),NA()) ->  | J17: =IFERROR(AVERAGEIFS(data[SENTTIÄ/KM],data[PÄIVÄMÄÄRÄ],G17,data[TOIMINTA],$J$8),NA()) -> 
F18: 9 | G18: 2012-05-09 | H18: =SUMIFS(data[KILOMETRIT],data[PÄIVÄMÄÄRÄ],G18,data[TOIMINTA],$H$8) -> 131 | I18: =IFERROR(AVERAGEIFS(data[MPG],data[PÄIVÄMÄÄRÄ],G18,data[TOIMINTA],$I$8),NA()) ->  | J18: =IFERROR(AVERAGEIFS(data[SENTTIÄ/KM],data[PÄIVÄMÄÄRÄ],G18,data[TOIMINTA],$J$8),NA()) -> 
F19: 10 | G19: 2012-05-10 | H19: =SUMIFS(data[KILOMETRIT],data[PÄIVÄMÄÄRÄ],G19,data[TOIMINTA],$H$8) -> 0 | I19: =IFERROR(AVERAGEIFS(data[MPG],data[PÄIVÄMÄÄRÄ],G19,data[TOIMINTA],$I$8),NA()) ->  | J19: =IFERROR(AVERAGEIFS(data[SENTTIÄ/KM],data[PÄIVÄMÄÄRÄ],G19,data[TOIMINTA],$J$8),NA()) -> 
F20: 11 | G20: 2012-05-11 | H20: =SUMIFS(data[KILOMETRIT],data[PÄIVÄMÄÄRÄ],G20,data[TOIMINTA],$H$8) -> 0 | I20: =IFERROR(AVERAGEIFS(data[MPG],data[PÄIVÄMÄÄRÄ],G20,data[TOIMINTA],$I$8),NA()) ->  | J20: =IFERROR(AVERAGEIFS(data[SENTTIÄ/KM],data[PÄIVÄMÄÄRÄ],G20,data[TOIMINTA],$J$8),NA()) -> 
F21: 12 | G21: 2012-05-12 | H21: =SUMIFS(data[KILOMETRIT],data[PÄIVÄMÄÄRÄ],G21,data[TOIMINTA],$H$8) -> 0 | I21: =IFERROR(AVERAGEIFS(data[MPG],data[PÄIVÄMÄÄRÄ],G21,data[TOIMINTA],$I$8),NA()) ->  | J21: =IFERROR(AVERAGEIFS(data[SENTTIÄ/KM],data[PÄIVÄMÄÄRÄ],G21,data[TOIMINTA],$J$8),NA()) -> 
F22: 13 | G22: 2012-05-13 | H22: =SUMIFS(data[KILOMETRIT],data[PÄIVÄMÄÄRÄ],G22,data[TOIMINTA],$H$8) -> 0 | I22: =IFERROR(AVERAGEIFS(data[MPG],data[PÄIVÄMÄÄRÄ],G22,data[TOIMINTA],$I$8),NA()) ->  | J22: =IFERROR(AVERAGEIFS(data[SENTTIÄ/KM],data[PÄIVÄMÄÄRÄ],G22,data[TOIMINTA],$J$8),NA()) -> 
F23: 14 | G23: 2012-05-14 | H23: =SUMIFS(data[KILOMETRIT],data[PÄIVÄMÄÄRÄ],G23,data[TOIMINTA],$H$8) -> 0 | I23: =IFERROR(AVERAGEIFS(data[MPG],data[PÄIVÄMÄÄRÄ],G23,data[TOIMINTA],$I$8),NA()) ->  | J23: =IFERROR(AVERAGEIFS(data[SENTTIÄ/KM],data[PÄIVÄMÄÄRÄ],G23,data[TOIMINTA],$J$8),NA()) -> 
F24: 15 | G24: 2012-05-15 | H24: =SUMIFS(data[KILOMETRIT],data[PÄIVÄMÄÄRÄ],G24,data[TOIMINTA],$H$8) -> 0 | I24: =IFERROR(AVERAGEIFS(data[MPG],data[PÄIVÄMÄÄRÄ],G24,data[TOIMINTA],$I$8),NA()) ->  | J24: =IFERROR(AVERAGEIFS(data[SENTTIÄ/KM],data[PÄIVÄMÄÄRÄ],G24,data[TOIMINTA],$J$8),NA()) -> 
F25: 16 | G25: 2012-05-16 | H25: =SUMIFS(data[KILOMETRIT],data[PÄIVÄMÄÄRÄ],G25,data[TOIMINTA],$H$8) -> 0 | I25: =IFERROR(AVERAGEIFS(data[MPG],data[PÄIVÄMÄÄRÄ],G25,data[TOIMINTA],$I$8),NA()) ->  | J25: =IFERROR(AVERAGEIFS(data[SENTTIÄ/KM],data[PÄIVÄMÄÄRÄ],G25,data[TOIMINTA],$J$8),NA()) -> 
F26: 17 | G26: 2012-05-17 | H26: =SUMIFS(data[KILOMETRIT],data[PÄIVÄMÄÄRÄ],G26,data[TOIMINTA],$H$8) -> 0 | I26: =IFERROR(AVERAGEIFS(data[MPG],data[PÄIVÄMÄÄRÄ],G26,data[TOIMINTA],$I$8),NA()) ->  | J26: =IFERROR(AVERAGEIFS(data[SENTTIÄ/KM],data[PÄIVÄMÄÄRÄ],G26,data[TOIMINTA],$J$8),NA()) -> 
F27: 18 | G27: 2012-05-18 | H27: =SUMIFS(data[KILOMETRIT],data[PÄIVÄMÄÄRÄ],G27,data[TOIMINTA],$H$8) -> 0 | I27: =IFERROR(AVERAGEIFS(data[MPG],data[PÄIVÄMÄÄRÄ],G27,data[TOIMINTA],$I$8),NA()) ->  | J27: =IFERROR(AVERAGEIFS(data[SENTTIÄ/KM],data[PÄIVÄMÄÄRÄ],G27,data[TOIMINTA],$J$8),NA()) -> 
F28: 19 | G28: 2012-05-19 | H28: =SUMIFS(data[KILOMETRIT],data[PÄIVÄMÄÄRÄ],G28,data[TOIMINTA],$H$8) -> 0 | I28: =IFERROR(AVERAGEIFS(data[MPG],data[PÄIVÄMÄÄRÄ],G28,data[TOIMINTA],$I$8),NA()) ->  | J28: =IFERROR(AVERAGEIFS(data[SENTTIÄ/KM],data[PÄIVÄMÄÄRÄ],G28,data[TOIMINTA],$J$8),NA()) -> 
F29: 20 | G29: 2012-05-20 | H29: =SUMIFS(data[KILOMETRIT],data[PÄIVÄMÄÄRÄ],G29,data[TOIMINTA],$H$8) -> 0 | I29: =IFERROR(AVERAGEIFS(data[MPG],data[PÄIVÄMÄÄRÄ],G29,data[TOIMINTA],$I$8),NA()) ->  | J29: =IFERROR(AVERAGEIFS(data[SENTTIÄ/KM],data[PÄIVÄMÄÄRÄ],G29,data[TOIMINTA],$J$8),NA()) -> 
F30: 21 | G30: 2012-05-21 | H30: =SUMIFS(data[KILOMETRIT],data[PÄIVÄMÄÄRÄ],G30,data[TOIMINTA],$H$8) -> 0 | I30: =IFERROR(AVERAGEIFS(data[MPG],data[PÄIVÄMÄÄRÄ],G30,data[TOIMINTA],$I$8),NA()) ->  | J30: =IFERROR(AVERAGEIFS(data[SENTTIÄ/KM],data[PÄIVÄMÄÄRÄ],G30,data[TOIMINTA],$J$8),NA()) -> 
F31: 22 | G31: 2012-05-22 | H31: =SUMIFS(data[KILOMETRIT],data[PÄIVÄMÄÄRÄ],G31,data[TOIMINTA],$H$8) -> 0 | I31: =IFERROR(AVERAGEIFS(data[MPG],data[PÄIVÄMÄÄRÄ],G31,data[TOIMINTA],$I$8),NA()) ->  | J31: =IFERROR(AVERAGEIFS(data[SENTTIÄ/KM],data[PÄIVÄMÄÄRÄ],G31,data[TOIMINTA],$J$8),NA()) -> 
F32: 23 | G32: 2012-05-23 | H32: =SUMIFS(data[KILOMETRIT],data[PÄIVÄMÄÄRÄ],G32,data[TOIMINTA],$H$8) -> 0 | I32: =IFERROR(AVERAGEIFS(data[MPG],data[PÄIVÄMÄÄRÄ],G32,data[TOIMINTA],$I$8),NA()) ->  | J32: =IFERROR(AVERAGEIFS(data[SENTTIÄ/KM],data[PÄIVÄMÄÄRÄ],G32,data[TOIMINTA],$J$8),NA()) -> 
F33: 24 | G33: 2012-05-24 | H33: =SUMIFS(data[KILOMETRIT],data[PÄIVÄMÄÄRÄ],G33,data[TOIMINTA],$H$8) -> 0 | I33: =IFERROR(AVERAGEIFS(data[MPG],data[PÄIVÄMÄÄRÄ],G33,data[TOIMINTA],$I$8),NA()) ->  | J33: =IFERROR(AVERAGEIFS(data[SENTTIÄ/KM],data[PÄIVÄMÄÄRÄ],G33,data[TOIMINTA],$J$8),NA()) -> 
F34: 25 | G34: 2012-05-25 | H34: =SUMIFS(data[KILOMETRIT],data[PÄIVÄMÄÄRÄ],G34,data[TOIMINTA],$H$8) -> 0 | I34: =IFERROR(AVERAGEIFS(data[MPG],data[PÄIVÄMÄÄRÄ],G34,data[TOIMINTA],$I$8),NA()) ->  | J34: =IFERROR(AVERAGEIFS(data[SENTTIÄ/KM],data[PÄIVÄMÄÄRÄ],G34,data[TOIMINTA],$J$8),NA()) -> 
F35: 26 | G35: 2012-05-26 | H35: =SUMIFS(data[KILOMETRIT],data[PÄIVÄMÄÄRÄ],G35,data[TOIMINTA],$H$8) -> 0 | I35: =IFERROR(AVERAGEIFS(data[MPG],data[PÄIVÄMÄÄRÄ],G35,data[TOIMINTA],$I$8),NA()) ->  | J35: =IFERROR(AVERAGEIFS(data[SENTTIÄ/KM],data[PÄIVÄMÄÄRÄ],G35,data[TOIMINTA],$J$8),NA()) -> 
F36: 27 | G36: 2012-05-27 | H36: =SUMIFS(data[KILOMETRIT],data[PÄIVÄMÄÄRÄ],G36,data[TOIMINTA],$H$8) -> 0 | I36: =IFERROR(AVERAGEIFS(data[MPG],data[PÄIVÄMÄÄRÄ],G36,data[TOIMINTA],$I$8),NA()) ->  | J36: =IFERROR(AVERAGEIFS(data[SENTTIÄ/KM],data[PÄIVÄMÄÄRÄ],G36,data[TOIMINTA],$J$8),NA()) -> 
F37: 28 | G37: 2012-05-28 | H37: =SUMIFS(data[KILOMETRIT],data[PÄIVÄMÄÄRÄ],G37,data[TOIMINTA],$H$8) -> 0 | I37: =IFERROR(AVERAGEIFS(data[MPG],data[PÄIVÄMÄÄRÄ],G37,data[TOIMINTA],$I$8),NA()) ->  | J37: =IFERROR(AVERAGEIFS(data[SENTTIÄ/KM],data[PÄIVÄMÄÄRÄ],G37,data[TOIMINTA],$J$8),NA()) -> 
F38: 29 | G38: 2012-05-29 | H38: =SUMIFS(data[KILOMETRIT],data[PÄIVÄMÄÄRÄ],G38,data[TOIMINTA],$H$8) -> 0 | I38: =IFERROR(AVERAGEIFS(data[MPG],data[PÄIVÄMÄÄRÄ],G38,data[TOIMINTA],$I$8),NA()) ->  | J38: =IFERROR(AVERAGEIFS(data[SENTTIÄ/KM],data[PÄIVÄMÄÄRÄ],G38,data[TOIMINTA],$J$8),NA()) -> 
F39: 30 | G39: 2012-05-30 | H39: =SUMIFS(data[KILOMETRIT],data[PÄIVÄMÄÄRÄ],G39,data[TOIMINTA],$H$8) -> 0 | I39: =IFERROR(AVERAGEIFS(data[MPG],data[PÄIVÄMÄÄRÄ],G39,data[TOIMINTA],$I$8),NA()) ->  | J39: =IFERROR(AVERAGEIFS(data[SENTTIÄ/KM],data[PÄIVÄMÄÄRÄ],G39,data[TOIMINTA],$J$8),NA()) -> 
F40: 31 | G40: 2012-05-31 | H40: =SUMIFS(data[KILOMETRIT],data[PÄIVÄMÄÄRÄ],G40,data[TOIMINTA],$H$8) -> 0 | I40: =IFERROR(AVERAGEIFS(data[MPG],data[PÄIVÄMÄÄRÄ],G40,data[TOIMINTA],$I$8),NA()) ->  | J40: =IFERROR(AVERAGEIFS(data[SENTTIÄ/KM],data[PÄIVÄMÄÄRÄ],G40,data[TOIMINTA],$J$8),NA()) -> 
F41: 32 | G41: 2012-06-01 | H41: =SUMIFS(data[KILOMETRIT],data[PÄIVÄMÄÄRÄ],G41,data[TOIMINTA],$H$8) -> 0 | I41: =IFERROR(AVERAGEIFS(data[MPG],data[PÄIVÄMÄÄRÄ],G41,data[TOIMINTA],$I$8),NA()) ->  | J41: =IFERROR(AVERAGEIFS(data[SENTTIÄ/KM],data[PÄIVÄMÄÄRÄ],G41,data[TOIMINTA],$J$8),NA()) -> 
F42: 33 | G42: 2012-06-02 | H42: =SUMIFS(data[KILOMETRIT],data[PÄIVÄMÄÄRÄ],G42,data[TOIMINTA],$H$8) -> 0 | I42: =IFERROR(AVERAGEIFS(data[MPG],data[PÄIVÄMÄÄRÄ],G42,data[TOIMINTA],$I$8),NA()) ->  | J42: =IFERROR(AVERAGEIFS(data[SENTTIÄ/KM],data[PÄIVÄMÄÄRÄ],G42,data[TOIMINTA],$J$8),NA()) -> 
F43: 34 | G43: =G42+1 -> 2012-06-03 | H43: =SUMIFS(data[KILOMETRIT],data[PÄIVÄMÄÄRÄ],G43,data[TOIMINTA],$H$8) -> 0 | I43: =IFERROR(AVERAGEIFS(data[MPG],data[PÄIVÄMÄÄRÄ],G43,data[TOIMINTA],$I$8),NA()) ->  | J43: =IFERROR(AVERAGEIFS(data[SENTTIÄ/KM],data[PÄIVÄMÄÄRÄ],G43,data[TOIMINTA],$J$8),NA()) -> 
F44: 35 | G44: 2012-06-04 | H44: =SUMIFS(data[KILOMETRIT],data[PÄIVÄMÄÄRÄ],G44,data[TOIMINTA],$H$8) -> 0 | I44: =IFERROR(AVERAGEIFS(data[MPG],data[PÄIVÄMÄÄRÄ],G44,data[TOIMINTA],$I$8),NA()) ->  | J44: =IFERROR(AVERAGEIFS(data[SENTTIÄ/KM],data[PÄIVÄMÄÄRÄ],G44,data[TOIMINTA],$J$8),NA()) -> 
F45: 36 | G45: 2012-06-05 | H45: =SUMIFS(data[KILOMETRIT],data[PÄIVÄMÄÄRÄ],G45,data[TOIMINTA],$H$8) -> 0 | I45: =IFERROR(AVERAGEIFS(data[MPG],data[PÄIVÄMÄÄRÄ],G45,data[TOIMINTA],$I$8),NA()) ->  | J45: =IFERROR(AVERAGEIFS(data[SENTTIÄ/KM],data[PÄIVÄMÄÄRÄ],G45,data[TOIMINTA],$J$8),NA()) -> 
F46: 37 | G46: 2012-06-06 | H46: =SUMIFS(data[KILOMETRIT],data[PÄIVÄMÄÄRÄ],G46,data[TOIMINTA],$H$8) -> 0 | I46: =IFERROR(AVERAGEIFS(data[MPG],data[PÄIVÄMÄÄRÄ],G46,data[TOIMINTA],$I$8),NA()) ->  | J46: =IFERROR(AVERAGEIFS(data[SENTTIÄ/KM],data[PÄIVÄMÄÄRÄ],G46,data[TOIMINTA],$J$8),NA()) -> 
F47: 38 | G47: 2012-06-07 | H47: =SUMIFS(data[KILOMETRIT],data[PÄIVÄMÄÄRÄ],G47,data[TOIMINTA],$H$8) -> 0 | I47: =IFERROR(AVERAGEIFS(data[MPG],data[PÄIVÄMÄÄRÄ],G47,data[TOIMINTA],$I$8),NA()) ->  | J47: =IFERROR(AVERAGEIFS(data[SENTTIÄ/KM],data[PÄIVÄMÄÄRÄ],G47,data[TOIMINTA],$J$8),NA()) -> 
F48: 39 | G48: 2012-06-08 | H48: =SUMIFS(data[KILOMETRIT],data[PÄIVÄMÄÄRÄ],G48,data[TOIMINTA],$H$8) -> 0 | I48: =IFERROR(AVERAGEIFS(data[MPG],data[PÄIVÄMÄÄRÄ],G48,data[TOIMINTA],$I$8),NA()) ->  | J48: =IFERROR(AVERAGEIFS(data[SENTTIÄ/KM],data[PÄIVÄMÄÄRÄ],G48,data[TOIMINTA],$J$8),NA()) -> 
F49: 40 | G49: 2012-06-09 | H49: =SUMIFS(data[KILOMETRIT],data[PÄIVÄMÄÄRÄ],G49,data[TOIMINTA],$H$8) -> 0 | I49: =IFERROR(AVERAGEIFS(data[MPG],data[PÄIVÄMÄÄRÄ],G49,data[TOIMINTA],$I$8),NA()) ->  | J49: =IFERROR(AVERAGEIFS(data[SENTTIÄ/KM],data[PÄIVÄMÄÄRÄ],G49,data[TOIMINTA],$J$8),NA()) -> 
F50: 41 | G50: 2012-06-10 | H50: =SUMIFS(data[KILOMETRIT],data[PÄIVÄMÄÄRÄ],G50,data[TOIMINTA],$H$8) -> 0 | I50: =IFERROR(AVERAGEIFS(data[MPG],data[PÄIVÄMÄÄRÄ],G50,data[TOIMINTA],$I$8),NA()) ->  | J50: =IFERROR(AVERAGEIFS(data[SENTTIÄ/KM],data[PÄIVÄMÄÄRÄ],G50,data[TOIMINTA],$J$8),NA()) -> 
F51: 42 | G51: 2012-06-11 | H51: =SUMIFS(data[KILOMETRIT],data[PÄIVÄMÄÄRÄ],G51,data[TOIMINTA],$H$8) -> 0 | I51: =IFERROR(AVERAGEIFS(data[MPG],data[PÄIVÄMÄÄRÄ],G51,data[TOIMINTA],$I$8),NA()) ->  | J51: =IFERROR(AVERAGEIFS(data[SENTTIÄ/KM],data[PÄIVÄMÄÄRÄ],G51,data[TOIMINTA],$J$8),NA()) -> 
F52: 43 | G52: 2012-06-12 | H52: =SUMIFS(data[KILOMETRIT],data[PÄIVÄMÄÄRÄ],G52,data[TOIMINTA],$H$8) -> 0 | I52: =IFERROR(AVERAGEIFS(data[MPG],data[PÄIVÄMÄÄRÄ],G52,data[TOIMINTA],$I$8),NA()) ->  | J52: =IFERROR(AVERAGEIFS(data[SENTTIÄ/KM],data[PÄIVÄMÄÄRÄ],G52,data[TOIMINTA],$J$8),NA()) -> 
F53: 44 | G53: 2012-06-13 | H53: =SUMIFS(data[KILOMETRIT],data[PÄIVÄMÄÄRÄ],G53,data[TOIMINTA],$H$8) -> 0 | I53: =IFERROR(AVERAGEIFS(data[MPG],data[PÄIVÄMÄÄRÄ],G53,data[TOIMINTA],$I$8),NA()) ->  | J53: =IFERROR(AVERAGEIFS(data[SENTTIÄ/KM],data[PÄIVÄMÄÄRÄ],G53,data[TOIMINTA],$J$8),NA()) -> 
F54: 45 | G54: 2012-06-14 | H54: =SUMIFS(data[KILOMETRIT],data[PÄIVÄMÄÄRÄ],G54,data[TOIMINTA],$H$8) -> 0 | I54: =IFERROR(AVERAGEIFS(data[MPG],data[PÄIVÄMÄÄRÄ],G54,data[TOIMINTA],$I$8),NA()) ->  | J54: =IFERROR(AVERAGEIFS(data[SENTTIÄ/KM],data[PÄIVÄMÄÄRÄ],G54,data[TOIMINTA],$J$8),NA()) -> 
F55: 46 | G55: 2012-06-15 | H55: =SUMIFS(data[KILOMETRIT],data[PÄIVÄMÄÄRÄ],G55,data[TOIMINTA],$H$8) -> 0 | I55: =IFERROR(AVERAGEIFS(data[MPG],data[PÄIVÄMÄÄRÄ],G55,data[TOIMINTA],$I$8),NA()) ->  | J55: =IFERROR(AVERAGEIFS(data[SENTTIÄ/KM],data[PÄIVÄMÄÄRÄ],G55,data[TOIMINTA],$J$8),NA()) -> 
F56: 47 | G56: 2012-06-16 | H56: =SUMIFS(data[KILOMETRIT],data[PÄIVÄMÄÄRÄ],G56,data[TOIMINTA],$H$8) -> 0 | I56: =IFERROR(AVERAGEIFS(data[MPG],data[PÄIVÄMÄÄRÄ],G56,data[TOIMINTA],$I$8),NA()) ->  | J56: =IFERROR(AVERAGEIFS(data[SENTTIÄ/KM],data[PÄIVÄMÄÄRÄ],G56,data[TOIMINTA],$J$8),NA()) -> 
F57: 48 | G57: 2012-06-17 | H57: =SUMIFS(data[KILOMETRIT],data[PÄIVÄMÄÄRÄ],G57,data[TOIMINTA],$H$8) -> 0 | I57: =IFERROR(AVERAGEIFS(data[MPG],data[PÄIVÄMÄÄRÄ],G57,data[TOIMINTA],$I$8),NA()) ->  | J57: =IFERROR(AVERAGEIFS(data[SENTTIÄ/KM],data[PÄIVÄMÄÄRÄ],G57,data[TOIMINTA],$J$8),NA()) -> 
F58: 49 | G58: 2012-06-18 | H58: =SUMIFS(data[KILOMETRIT],data[PÄIVÄMÄÄRÄ],G58,data[TOIMINTA],$H$8) -> 0 | I58: =IFERROR(AVERAGEIFS(data[MPG],data[PÄIVÄMÄÄRÄ],G58,data[TOIMINTA],$I$8),NA()) ->  | J58: =IFERROR(AVERAGEIFS(data[SENTTIÄ/KM],data[PÄIVÄMÄÄRÄ],G58,data[TOIMINTA],$J$8),NA()) -> 
F59: 50 | G59: 2012-06-19 | H59: =SUMIFS(data[KILOMETRIT],data[PÄIVÄMÄÄRÄ],G59,data[TOIMINTA],$H$8) -> 0 | I59: =IFERROR(AVERAGEIFS(data[MPG],data[PÄIVÄMÄÄRÄ],G59,data[TOIMINTA],$I$8),NA()) ->  | J59: =IFERROR(AVERAGEIFS(data[SENTTIÄ/KM],data[PÄIVÄMÄÄRÄ],G59,data[TOIMINTA],$J$8),NA()) -> 
F60: 51 | G60: 2012-06-20 | H60: =SUMIFS(data[KILOMETRIT],data[PÄIVÄMÄÄRÄ],G60,data[TOIMINTA],$H$8) -> 0 | I60: =IFERROR(AVERAGEIFS(data[MPG],data[PÄIVÄMÄÄRÄ],G60,data[TOIMINTA],$I$8),NA()) ->  | J60: =IFERROR(AVERAGEIFS(data[SENTTIÄ/KM],data[PÄIVÄMÄÄRÄ],G60,data[TOIMINTA],$J$8),NA()) -> 
F61: 52 | G61: 2012-06-21 | H61: =SUMIFS(data[KILOMETRIT],data[PÄIVÄMÄÄRÄ],G61,data[TOIMINTA],$H$8) -> 0 | I61: =IFERROR(AVERAGEIFS(data[MPG],data[PÄIVÄMÄÄRÄ],G61,data[TOIMINTA],$I$8),NA()) ->  | J61: =IFERROR(AVERAGEIFS(data[SENTTIÄ/KM],data[PÄIVÄMÄÄRÄ],G61,data[TOIMINTA],$J$8),NA()) -> 
F62: 53 | G62: 2012-06-22 | H62: =SUMIFS(data[KILOMETRIT],data[PÄIVÄMÄÄRÄ],G62,data[TOIMINTA],$H$8) -> 0 | I62: =IFERROR(AVERAGEIFS(data[MPG],data[PÄIVÄMÄÄRÄ],G62,data[TOIMINTA],$I$8),NA()) ->  | J62: =IFERROR(AVERAGEIFS(data[SENTTIÄ/KM],data[PÄIVÄMÄÄRÄ],G62,data[TOIMINTA],$J$8),NA()) -> 
F63: 54 | G63: 2012-06-23 | H63: =SUMIFS(data[KILOMETRIT],data[PÄIVÄMÄÄRÄ],G63,data[TOIMINTA],$H$8) -> 0 | I63: =IFERROR(AVERAGEIFS(data[MPG],data[PÄIVÄMÄÄRÄ],G63,data[TOIMINTA],$I$8),NA()) ->  | J63: =IFERROR(AVERAGEIFS(data[SENTTIÄ/KM],data[PÄIVÄMÄÄRÄ],G63,data[TOIMINTA],$J$8),NA()) -> 
F64: 55 | G64: 2012-06-24 | H64: =SUMIFS(data[KILOMETRIT],data[PÄIVÄMÄÄRÄ],G64,data[TOIMINTA],$H$8) -> 0 | I64: =IFERROR(AVERAGEIFS(data[MPG],data[PÄIVÄMÄÄRÄ],G64,data[TOIMINTA],$I$8),NA()) ->  | J64: =IFERROR(AVERAGEIFS(data[SENTTIÄ/KM],data[PÄIVÄMÄÄRÄ],G64,data[TOIMINTA],$J$8),NA()) -> 
F65: 56 | G65: 2012-06-25 | H65: =SUMIFS(data[KILOMETRIT],data[PÄIVÄMÄÄRÄ],G65,data[TOIMINTA],$H$8) -> 0 | I65: =IFERROR(AVERAGEIFS(data[MPG],data[PÄIVÄMÄÄRÄ],G65,data[TOIMINTA],$I$8),NA()) ->  | J65: =IFERROR(AVERAGEIFS(data[SENTTIÄ/KM],data[PÄIVÄMÄÄRÄ],G65,data[TOIMINTA],$J$8),NA()) -> 
F66: 57 | G66: 2012-06-26 | H66: =SUMIFS(data[KILOMETRIT],data[PÄIVÄMÄÄRÄ],G66,data[TOIMINTA],$H$8) -> 0 | I66: =IFERROR(AVERAGEIFS(data[MPG],data[PÄIVÄMÄÄRÄ],G66,data[TOIMINTA],$I$8),NA()) ->  | J66: =IFERROR(AVERAGEIFS(data[SENTTIÄ/KM],data[PÄIVÄMÄÄRÄ],G66,data[TOIMINTA],$J$8),NA()) -> 
F67: 58 | G67: 2012-06-27 | H67: =SUMIFS(data[KILOMETRIT],data[PÄIVÄMÄÄRÄ],G67,data[TOIMINTA],$H$8) -> 0 | I67: =IFERROR(AVERAGEIFS(data[MPG],data[PÄIVÄMÄÄRÄ],G67,data[TOIMINTA],$I$8),NA()) ->  | J67: =IFERROR(AVERAGEIFS(data[SENTTIÄ/KM],data[PÄIVÄMÄÄRÄ],G67,data[TOIMINTA],$J$8),NA()) -> 
F68: 59 | G68: 2012-06-28 | H68: =SUMIFS(data[KILOMETRIT],data[PÄIVÄMÄÄRÄ],G68,data[TOIMINTA],$H$8) -> 0 | I68: =IFERROR(AVERAGEIFS(data[MPG],data[PÄIVÄMÄÄRÄ],G68,data[TOIMINTA],$I$8),NA()) ->  | J68: =IFERROR(AVERAGEIFS(data[SENTTIÄ/KM],data[PÄIVÄMÄÄRÄ],G68,data[TOIMINTA],$J$8),NA()) -> 
F69: 60 | G69: 2012-06-29 | H69: =SUMIFS(data[KILOMETRIT],data[PÄIVÄMÄÄRÄ],G69,data[TOIMINTA],$H$8) -> 0 | I69: =IFERROR(AVERAGEIFS(data[MPG],data[PÄIVÄMÄÄRÄ],G69,data[TOIMINTA],$I$8),NA()) ->  | J69: =IFERROR(AVERAGEIFS(data[SENTTIÄ/KM],data[PÄIVÄMÄÄRÄ],G69,data[TOIMINTA],$J$8),NA()) -> 
